[Event "EYCC Girls-U12 2019"]
[Site "Bratislava"]
[Date "2019.08.04"]
[Round "3.12"]
[White "Huang, Wendy"]
[Black "Verheij, Dana"]
[Result "0-1"]
[ECO "B92"]
[WhiteElo "1784"]
[BlackElo "1497"]
[Annotator "NA"]
[PlyCount "60"]
[EventDate "2019.08.02"]
[EventType "swiss"]
[EventCountry "SVK"]
[SourceTitle "playchess.com"]
[Source "ChessBase"]
[SourceQuality "1"]
[TimeControl "40/5400+30:1800+30"]

1. e4 {[%emt 0:00:00]} c5 {[%emt 0:00:00]} 2. Nf3 {[%emt 0:00:00]} d6 {[%emt 0:00:00]} 3. d4 {[%emt 0:00:00]} cxd4 {[%emt 0:00:00]} 4. Nxd4 {[%emt 0:00:00]} Nf6 {[%emt 0:00:00]} 5. Nc3 {[%emt 0:00:00]} a6 {[%emt 0:00:00]} 6. Be2 {[%emt 0:00:00]} e5 {[%emt 0:00:10]} 7. Nb3 {[%emt 0:00:02]} Be6 {[%emt 0:00:07]} 8. O-O {[%emt 0:00:05]} Be7 {[%emt 0:00:13]} 9. f4 {[%emt 0:00:07]} exf4 {[%emt 0:01:22]} 10. Bxf4 {[%emt 0:00:45]} Nc6 {[%emt 0:00:37]} 11. Bf3 {[%emt 0:04:44]} Qc7 {[%emt 0:02:44]} 12. Kh1 {[%emt 0:01:13]} O-O {[%emt 0:01:54]} 13. Nd4 {[%emt 0:08:29]} Rad8 {[%emt 0:11:47]} 14. Rc1 {[%emt 0:11:28]} Ne5 {[%emt 0:04:48]} 15. Nd5 {[%emt 0:03:12]} Bxd5 {[%emt 0:00:57]} 16. exd5 {[%emt 0:00:09]} Qc4 {[%emt 0:08:39]} 17. b3 {[%emt 0:07:21]} Qc3 {[%emt 0:01:54]} 18. Nf5 {[%emt 0:04:44]} Rfe8 {[%emt 0:01:03]} 19. Bd2 {[%emt 0:02:38]} Qc5 {[%emt 0:01:16]} 20. Be3 {[%emt 0:02:36]} Qc8 {[%emt 0:01:55]} 21. Nxe7+ {[%emt 0:04:26]} Rxe7 {[%emt 0:02:38]} 22. Bg5 {[%emt 0:00:28]} Qf5 {[%emt 0:01:50]} 23. Qd2 {[%emt 0:02:49]} Qg6 {[%emt 0:08:27]} 24. h4 {[%emt 0:14:58]} h6 {[%emt 0:03:18]} 25. Bf4 {[%emt 0:02:02]} Nxf3 {[%emt 0:05:28]} 26. Rxf3 {[%emt 0:01:16]} Rde8 {[%emt 0:01:36]} 27. Rg3 {[%emt 0:05:45]} Qh5 {[%emt 0:01:35]} 28. Bxh6 {[%emt 0:01:26]} Qxh4+ {[%emt 0:03:01]} 29. Rh3 {[%emt 0:00:07]} Re1+ {[%emt 0:00:38]} 30. Rxe1 {[%emt 0:04:24]} Rxe1+ {[%emt 0:00:07]} 0-1

[Event "EYCC Girls-U12 2019"]
[Site "Bratislava"]
[Date "2019.08.05"]
[Round "4.1"]
[White "Shvedova, Alexandra"]
[Black "Zhapova, Yana"]
[Result "1-0"]
[ECO "D44"]
[WhiteElo "1932"]
[BlackElo "1809"]
[Annotator "NA"]
[PlyCount "73"]
[EventDate "2019.08.02"]
[EventType "swiss"]
[EventCountry "SVK"]
[SourceTitle "playchess.com"]
[Source "ChessBase"]
[SourceQuality "1"]
[TimeControl "40/5400+30:1800+30"]

1. d4 {[%emt 0:00:00]} d5 {[%emt 0:00:27]} 2. c4 {[%emt 0:00:00]} e6 {[%emt 0:00:21]} 3. Nf3 {[%emt 0:00:00]} Nf6 {[%emt 0:01:20]} 4. Nc3 {[%emt 0:00:07]} c6 {[%emt 0:03:05]} 5. Bg5 {[%emt 0:00:44]} dxc4 {[%emt 0:03:18]} 6. e4 {[%emt 0:16:42]} b5 {[%emt 0:02:50]} 7. e5 {[%emt 0:02:53]} h6 {[%emt 0:00:54]} 8. Bh4 {[%emt 0:00:21]} g5 {[%emt 0:00:15]} 9. Nxg5 {[%emt 0:02:18]} hxg5 {[%emt 0:03:13]} 10. Bxg5 {[%emt 0:00:03]} Be7 {[%emt 0:01:46]} 11. exf6 {[%emt 0:00:09]} Bxf6 {[%emt 0:00:07]} 12. Bxf6 {[%emt 0:01:54]} Qxf6 {[%emt 0:00:16]} 13. g3 {[%emt 0:00:09]} Bb7 {[%emt 0:07:16]} 14. Bg2 {[%emt 0:00:09]} Na6 {[%emt 0:02:41]} 15. Ne4 {[%emt 0:11:25]} Qe7 {[%emt 0:03:43]} 16. Qd2 {[%emt 0:08:32]} O-O-O {[%emt 0:08:07]} 17. O-O {[%emt 0:05:57]} f5 {[%emt 0:13:15]} 18. Ng5 {[%emt 0:02:49]} c5 {[%emt 0:13:00]} 19. Rfe1 {[%emt 0:09:03]} Bxg2 {[%emt 0:07:05]} 20. Kxg2 {[%emt 0:00:38]} Rxd4 {[%emt 0:00:38]} 21. Qa5 {[%emt 0:04:49]} Qb7+ {[%emt 0:06:02]} 22. Kg1 {[%emt 0:00:20]} Rd7 {[%emt 0:09:07]} 23. Rxe6 {[%emt 0:02:30]} Nc7 {[%emt 0:00:27]} 24. Re5 {[%emt 0:02:10]} Rhd8 {[%emt 0:00:15]} 25. Rae1 {[%emt 0:00:33]} Rd5 {[%emt 0:01:13]} 26. Nf7 {[%emt 0:04:56]} Rf8 {[%emt 0:03:33]} 27. Rxf5 {[%emt 0:02:04]} Rg8 {[%emt 0:04:11]} 28. Qc3 {[%emt 0:01:42]} Qc6 {[%emt 0:01:00]} 29. Qf3 {[%emt 0:01:27]} Kb7 {[%emt 0:02:50]} 30. Rf6 {[%emt 0:00:33]} Qd7 {[%emt 0:00:14]} 31. Ne5 {[%emt 0:01:12]} Qd8 {[%emt 0:01:12]} 32. Nc6 {[%emt 0:00:38]} Qd7 {[%emt 0:00:24]} 33. Na5+ {[%emt 0:04:36]} Kc8 {[%emt 0:00:46]} 34. Rf7 {[%emt 0:00:41]} Qd6 {[%emt 0:00:43]} 35. Ree7 {[%emt 0:00:41]} Ne6 {[%emt 0:00:39]} 36. Rd7 {[%emt 0:01:24]} Nd4 {[%emt 0:01:10]} 37. Qxd5 {[%emt 0:00:14]} 1-0

[Event "EYCC Girls-U12 2019"]
[Site "Bratislava"]
[Date "2019.08.05"]
[Round "4.2"]
[White "Karmanova, Olga Dm."]
[Black "Buyuk, Ecrin Efsa"]
[Result "1/2-1/2"]
[ECO "D10"]
[WhiteElo "1838"]
[BlackElo "1592"]
[Annotator "NA"]
[PlyCount "79"]
[EventDate "2019.08.02"]
[EventType "swiss"]
[EventCountry "SVK"]
[SourceTitle "playchess.com"]
[Source "ChessBase"]
[SourceQuality "1"]
[TimeControl "40/5400+30:1800+30"]

1. c4 {[%emt 0:00:00]} c6 {[%emt 0:00:00]} 2. d4 {[%emt 0:00:00]} d5 {[%emt 0:00:06]} 3. cxd5 {[%emt 0:00:00]} cxd5 {[%emt 0:00:24]} 4. Nc3 {[%emt 0:00:00]} Nf6 {[%emt 0:00:32]} 5. f3 {[%emt 0:00:00]} e6 {[%emt 0:04:02]} 6. e4 {[%emt 0:01:27]} dxe4 {[%emt 0:01:47]} 7. fxe4 {[%emt 0:00:11]} Bb4 {[%emt 0:07:34]} 8. Bb5+ {[%emt 0:03:51]} Bd7 {[%emt 0:01:49]} 9. Bxd7+ {[%emt 0:04:08]} Qxd7 {[%emt 0:00:21]} 10. Nge2 {[%emt 0:16:38]} Nxe4 {[%emt 0:09:17]} 11. O-O {[%emt 0:00:58]} Bxc3 {[%emt 0:01:22]} 12. bxc3 {[%emt 0:00:39]} O-O {[%emt 0:02:32]} 13. Qd3 {[%emt 0:02:58]} f5 {[%emt 0:11:00]} 14. Ng3 {[%emt 0:07:10]} Nxg3 {[%emt 0:01:45]} 15. Qxg3 {[%emt 0:01:07]} Rf6 {[%emt 0:04:17]} 16. Rb1 {[%emt 0:07:16]} Nc6 {[%emt 0:07:28]} 17. h4 {[%emt 0:01:58]} Rg6 {[%emt 0:05:29]} 18. Qf3 {[%emt 0:01:36]} Rg4 {[%emt 0:01:21]} 19. h5 {[%emt 0:02:16]} h6 {[%emt 0:00:54]} 20. Bf4 {[%emt 0:07:20]} Rd8 {[%emt 0:02:25]} 21. Rfe1 {[%emt 0:04:14]} b6 {[%emt 0:04:44]} 22. g3 {[%emt 0:01:51]} Ne7 {[%emt 0:04:59]} 23. Be5 {[%emt 0:06:24]} Qe8 {[%emt 0:10:12]} 24. Rb2 {[%emt 0:06:43]} Qxh5 {[%emt 0:02:41]} 25. Qb7 {[%emt 0:05:21]} Re8 {[%emt 0:08:20]} 26. Rg2 {[%emt 0:05:43]} Qg6 {[%emt 0:03:09]} 27. c4 {[%emt 0:03:08]} Qf7 {[%emt 0:02:33]} 28. Qxa7 {[%emt 0:02:40]} Nc6 {[%emt 0:00:31]} 29. Qxb6 {[%emt 0:01:14]} Nxe5 {[%emt 0:00:04]} 30. Rxe5 {[%emt 0:00:30]} Qg6 {[%emt 0:01:03]} 31. Qc6 {[%emt 0:03:01]} Rxg3 {[%emt 0:01:41]} 32. Qxe8+ {[%emt 0:01:19]} Qxe8 {[%emt 0:00:02]} 33. Rxg3 {[%emt 0:00:08]} Qa4 {[%emt 0:00:58]} 34. Rxe6 {[%emt 0:00:57]} Qxc4 {[%emt 0:00:19]} 35. Reg6 {[%emt 0:00:46]} Qxd4+ {[%emt 0:00:08]} 36. Kh2 {[%emt 0:00:37]} Qh4+ {[%emt 0:01:18]} 37. Kg1 {[%emt 0:00:29]} Qd4+ {[%emt 0:00:03]} 38. Kh2 {[%emt 0:00:11]} Qf2+ {[%emt 0:00:40]} 39. Rg2 {[%emt 0:00:11]} Qh4+ {[%emt 0:00:26]} 40. Kg1 {[%emt 0:00:00]} 1/2-1/2

[Event "EYCC Girls-U12 2019"]
[Site "Bratislava"]
[Date "2019.08.05"]
[Round "4.3"]
[White "Vlasova, Olesia"]
[Black "Zhou, Lepu Coco"]
[Result "1/2-1/2"]
[ECO "E62"]
[WhiteElo "1799"]
[BlackElo "1861"]
[Annotator "NA"]
[PlyCount "98"]
[EventDate "2019.08.02"]
[EventType "swiss"]
[EventCountry "SVK"]
[SourceTitle "playchess.com"]
[Source "ChessBase"]
[SourceQuality "1"]
[TimeControl "40/5400+30:1800+30"]

1. Nf3 {[%emt 0:00:00]} Nf6 {[%emt 0:00:00]} 2. c4 {[%emt 0:00:00]} g6 {[%emt 0:00:00]} 3. g3 {[%emt 0:00:00]} Bg7 {[%emt 0:00:06]} 4. Bg2 {[%emt 0:00:00]} O-O {[%emt 0:00:11]} 5. d4 {[%emt 0:00:00]} d6 {[%emt 0:00:18]} 6. O-O {[%emt 0:00:07]} Nc6 {[%emt 0:01:25]} 7. Nc3 {[%emt 0:00:10]} e5 {[%emt 0:00:58]} 8. d5 {[%emt 0:00:08]} Ne7 {[%emt 0:00:46]} 9. c5 {[%emt 0:00:10]} a6 {[%emt 0:05:01]} 10. cxd6 {[%emt 0:02:53]} cxd6 {[%emt 0:00:16]} 11. e4 {[%emt 0:00:27]} Nd7 {[%emt 0:03:55]} 12. Be3 {[%emt 0:02:48]} h6 {[%emt 0:02:10]} 13. Nd2 {[%emt 0:20:16]} f5 {[%emt 0:04:51]} 14. f3 {[%emt 0:09:17]} f4 {[%emt 0:03:17]} 15. Bf2 {[%emt 0:00:38]} g5 {[%emt 0:02:16]} 16. a4 {[%emt 0:03:14]} Nf6 {[%emt 0:09:48]} 17. Qb3 {[%emt 0:02:23]} Nh5 {[%emt 0:07:17]} 18. g4 {[%emt 0:02:57]} Nf6 {[%emt 0:01:18]} 19. Nc4 {[%emt 0:01:06]} Ng6 {[%emt 0:06:37]} 20. Qb6 {[%emt 0:01:15]} Qxb6 {[%emt 0:00:55]} 21. Nxb6 {[%emt 0:01:17]} Rb8 {[%emt 0:01:04]} 22. a5 {[%emt 0:01:25]} Bd7 {[%emt 0:09:06]} 23. Rfc1 {[%emt 0:00:50]} Rf7 {[%emt 0:05:08]} 24. Rc2 {[%emt 0:02:46]} h5 {[%emt 0:02:52]} 25. h3 {[%emt 0:00:56]} hxg4 {[%emt 0:00:57]} 26. hxg4 {[%emt 0:00:05]} Bf8 {[%emt 0:01:36]} 27. Rac1 {[%emt 0:01:25]} Be7 {[%emt 0:01:59]} 28. Nb1 {[%emt 0:02:17]} Bd8 {[%emt 0:02:07]} 29. Na3 {[%emt 0:00:52]} Ne8 {[%emt 0:02:49]} 30. b4 {[%emt 0:01:59]} Bxb6 {[%emt 0:06:55]} 31. Bxb6 {[%emt 0:00:17]} Nh4 {[%emt 0:00:30]} 32. Nc4 {[%emt 0:02:11]} Ba4 {[%emt 0:02:02]} 33. Rc3 {[%emt 0:00:28]} Nxg2 {[%emt 0:00:46]} 34. Kxg2 {[%emt 0:00:20]} Bb5 {[%emt 0:02:01]} 35. Na3 {[%emt 0:01:20]} Bd7 {[%emt 0:00:50]} 36. Nc4 {[%emt 0:04:44]} Bb5 {[%emt 0:00:24]} 37. Na3 {[%emt 0:00:46]} Bd7 {[%emt 0:00:15]} 38. Bg1 {[%emt 0:00:31]} Rh7 {[%emt 0:01:42]} 39. Nc4 {[%emt 0:00:28]} Rc8 {[%emt 0:04:25]} 40. Nb6 {[%emt 0:00:00]} Rxc3 {[%emt 0:00:00]} 41. Rxc3 {[%emt 0:01:12]} Kf8 {[%emt 0:01:58]} 42. Bf2 {[%emt 0:03:43]} Ke7 {[%emt 0:02:01]} 43. Na8 {[%emt 0:01:53]} Rh8 {[%emt 0:03:21]} 44. Nb6 {[%emt 0:01:19]} Rh6 {[%emt 0:04:41]} 45. Rc1 {[%emt 0:01:19]} Kd8 {[%emt 0:02:56]} 46. Nc4 {[%emt 0:01:21]} Bb5 {[%emt 0:03:03]} 47. Nb6 {[%emt 0:01:14]} Bd7 {[%emt 0:00:20]} 48. Nc4 {[%emt 0:00:10]} Bb5 {[%emt 0:01:00]} 49. Nb6 {[%emt 0:00:06]} Bd7 {[%emt 0:00:12]} 1/2-1/2

[Event "EYCC Girls-U12 2019"]
[Site "Bratislava"]
[Date "2019.08.05"]
[Round "4.4"]
[White "Van, Foreest Machteld"]
[Black "Kalenichenko, Alina"]
[Result "1-0"]
[ECO "B42"]
[WhiteElo "2186"]
[BlackElo "1549"]
[Annotator "NA"]
[PlyCount "85"]
[EventDate "2019.08.02"]
[EventType "swiss"]
[EventCountry "SVK"]
[SourceTitle "playchess.com"]
[Source "ChessBase"]
[SourceQuality "1"]
[TimeControl "40/5400+30:1800+30"]

1. e4 {[%emt 0:00:00]} c5 {[%emt 0:00:00]} 2. Nf3 {[%emt 0:00:00]} e6 {[%emt 0:00:00]} 3. d4 {[%emt 0:00:00]} cxd4 {[%emt 0:00:00]} 4. Nxd4 {[%emt 0:00:00]} a6 {[%emt 0:00:00]} 5. Bd3 {[%emt 0:00:00]} Nc6 {[%emt 0:00:28]} 6. Nxc6 {[%emt 0:04:11]} dxc6 {[%emt 0:00:17]} 7. Be3 {[%emt 0:02:43]} Nf6 {[%emt 0:00:20]} 8. O-O {[%emt 0:03:25]} Be7 {[%emt 0:00:39]} 9. Nc3 {[%emt 0:01:25]} b5 {[%emt 0:01:06]} 10. e5 {[%emt 0:10:15]} Nd5 {[%emt 0:00:16]} 11. Qg4 {[%emt 0:01:30]} Kf8 {[%emt 0:15:20]} 12. Ne4 {[%emt 0:14:46]} h5 {[%emt 0:06:32]} 13. Qf3 {[%emt 0:04:29]} g6 {[%emt 0:04:50]} 14. Bc5 {[%emt 0:07:09]} Bxc5 {[%emt 0:01:04]} 15. Nxc5 {[%emt 0:00:10]} Kg7 {[%emt 0:00:15]} 16. Ne4 {[%emt 0:03:49]} Qe7 {[%emt 0:04:31]} 17. Nd6 {[%emt 0:03:07]} Bd7 {[%emt 0:06:36]} 18. c4 {[%emt 0:10:14]} Nb6 {[%emt 0:01:54]} 19. c5 {[%emt 0:01:13]} Na4 {[%emt 0:02:25]} 20. b4 {[%emt 0:00:57]} a5 {[%emt 0:00:26]} 21. a3 {[%emt 0:00:42]} Ra7 {[%emt 0:07:36]} 22. Be4 {[%emt 0:05:13]} Rc7 {[%emt 0:02:49]} 23. Rfd1 {[%emt 0:01:15]} Rf8 {[%emt 0:06:38]} 24. Bc2 {[%emt 0:05:50]} axb4 {[%emt 0:03:38]} 25. Bxa4 {[%emt 0:01:31]} bxa4 {[%emt 0:00:30]} 26. axb4 {[%emt 0:00:01]} Ra7 {[%emt 0:00:15]} 27. Ne4 {[%emt 0:01:39]} Rb8 {[%emt 0:01:22]} 28. Rd4 {[%emt 0:00:12]} Be8 {[%emt 0:04:06]} 29. Nf6 {[%emt 0:08:12]} Rd8 {[%emt 0:01:34]} 30. Nxh5+ {[%emt 0:05:59]} gxh5 {[%emt 0:00:09]} 31. Qf6+ {[%emt 0:00:08]} Qxf6 {[%emt 0:00:20]} 32. exf6+ {[%emt 0:00:02]} Kxf6 {[%emt 0:00:19]} 33. Rxd8 {[%emt 0:00:01]} Bd7 {[%emt 0:01:07]} 34. Rh8 {[%emt 0:02:48]} Kg6 {[%emt 0:00:49]} 35. Rg8+ {[%emt 0:00:03]} Kf6 {[%emt 0:00:11]} 36. Rg3 {[%emt 0:00:07]} e5 {[%emt 0:00:54]} 37. Rga3 {[%emt 0:00:10]} e4 {[%emt 0:00:24]} 38. Rxa4 {[%emt 0:00:05]} Rb7 {[%emt 0:00:09]} 39. Ra7 {[%emt 0:00:11]} Rxa7 {[%emt 0:00:20]} 40. Rxa7 {[%emt 0:00:00]} Be6 {[%emt 0:00:00]} 41. Ra6 {[%emt 0:00:14]} Bd5 {[%emt 0:00:15]} 42. b5 {[%emt 0:00:02]} Ke5 {[%emt 0:01:00]} 43. b6 {[%emt 0:00:06]} 1-0

[Event "EYCC Girls-U12 2019"]
[Site "Bratislava"]
[Date "2019.08.05"]
[Round "4.5"]
[White "Karaivanova, Petya"]
[Black "Norman, Kseniya"]
[Result "1-0"]
[ECO "B06"]
[WhiteElo "1792"]
[BlackElo "1532"]
[Annotator "NA"]
[PlyCount "149"]
[EventDate "2019.08.02"]
[EventType "swiss"]
[EventCountry "SVK"]
[SourceTitle "playchess.com"]
[Source "ChessBase"]
[SourceQuality "1"]
[TimeControl "40/5400+30:1800+30"]

1. e4 {[%emt 0:00:00]} g6 {[%emt 0:00:00]} 2. d4 {[%emt 0:00:00]} Bg7 {[%emt 0:00:00]} 3. Nc3 {[%emt 0:00:00]} d6 {[%emt 0:00:00]} 4. Nf3 {[%emt 0:00:00]} Nd7 {[%emt 0:00:00]} 5. Be3 {[%emt 0:00:24]} a6 {[%emt 0:00:21]} 6. Qd2 {[%emt 0:01:00]} b5 {[%emt 0:00:35]} 7. a4 {[%emt 0:03:08]} b4 {[%emt 0:01:07]} 8. Nd5 {[%emt 0:04:42]} c5 {[%emt 0:04:37]} 9. dxc5 {[%emt 0:05:56]} dxc5 {[%emt 0:00:14]} 10. Bf4 {[%emt 0:07:03]} Ra7 {[%emt 0:03:06]} 11. Rb1 {[%emt 0:04:02]} e6 {[%emt 0:03:39]} 12. Ne3 {[%emt 0:01:01]} Bb7 {[%emt 0:01:36]} 13. Nc4 {[%emt 0:01:43]} Bf8 {[%emt 0:07:51]} 14. Bd3 {[%emt 0:08:53]} Qa8 {[%emt 0:08:04]} 15. Nfe5 {[%emt 0:04:54]} Nxe5 {[%emt 0:05:38]} 16. Bxe5 {[%emt 0:00:20]} f6 {[%emt 0:00:14]} 17. Bd6 {[%emt 0:05:48]} Bxe4 {[%emt 0:04:17]} 18. Qe3 {[%emt 0:02:03]} Bxd3 {[%emt 0:03:49]} 19. cxd3 {[%emt 0:02:25]} Qd5 {[%emt 0:02:38]} 20. Bxf8 {[%emt 0:02:08]} Kxf8 {[%emt 0:00:07]} 21. O-O {[%emt 0:01:08]} Ne7 {[%emt 0:02:22]} 22. Rfe1 {[%emt 0:02:17]} Kf7 {[%emt 0:00:58]} 23. Rbc1 {[%emt 0:08:14]} Nf5 {[%emt 0:03:34]} 24. Qe4 {[%emt 0:03:41]} Rc7 {[%emt 0:06:43]} 25. Qf4 {[%emt 0:03:34]} e5 {[%emt 0:04:07]} 26. Nxe5+ {[%emt 0:06:20]} fxe5 {[%emt 0:00:48]} 27. Rxe5 {[%emt 0:00:06]} Qb7 {[%emt 0:06:02]} 28. g4 {[%emt 0:02:32]} Rg8 {[%emt 0:01:38]} 29. gxf5 {[%emt 0:05:37]} gxf5+ {[%emt 0:00:07]} 30. Kf1 {[%emt 0:00:03]} Qg2+ {[%emt 0:05:16]} 31. Ke2 {[%emt 0:00:22]} Rc6 {[%emt 0:07:16]} 32. Qxf5+ {[%emt 0:01:48]} Rf6 {[%emt 0:00:18]} 33. Qh5+ {[%emt 0:00:08]} Rgg6 {[%emt 0:00:53]} 34. Qxh7+ {[%emt 0:01:51]} Rg7 {[%emt 0:00:09]} 35. Qh5+ {[%emt 0:00:07]} Rgg6 {[%emt 0:00:03]} 36. Rf5 {[%emt 0:02:21]} Kg7 {[%emt 0:01:17]} 37. Rxf6 {[%emt 0:02:51]} Rxf6 {[%emt 0:00:05]} 38. Qxc5 {[%emt 0:03:09]} Qf3+ {[%emt 0:03:25]} 39. Kd2 {[%emt 0:01:51]} Qxf2+ {[%emt 0:01:41]} 40. Qxf2 {[%emt 0:00:00]} Rxf2+ {[%emt 0:00:00]} 41. Ke3 {[%emt 0:00:35]} Rxb2 {[%emt 0:01:50]} 42. Rc7+ {[%emt 0:02:05]} Kf6 {[%emt 0:01:00]} 43. Rc6+ {[%emt 0:00:52]} Ke5 {[%emt 0:02:06]} 44. Rxa6 {[%emt 0:01:46]} Rxh2 {[%emt 0:01:05]} 45. Ra5+ {[%emt 0:00:10]} Kd6 {[%emt 0:00:10]} 46. Rb5 {[%emt 0:02:52]} Rh3+ {[%emt 0:00:59]} 47. Kd2 {[%emt 0:00:38]} Rh2+ {[%emt 0:00:17]} 48. Kc1 {[%emt 0:00:48]} Rh1+ {[%emt 0:00:06]} 49. Kc2 {[%emt 0:00:06]} Rh2+ {[%emt 0:00:03]} 50. Kb3 {[%emt 0:00:13]} Rh3 {[%emt 0:01:03]} 51. Kc4 {[%emt 0:00:19]} Rh4+ {[%emt 0:00:38]} 52. d4 {[%emt 0:00:19]} Rh1 {[%emt 0:01:09]} 53. Rxb4 {[%emt 0:02:32]} Ra1 {[%emt 0:00:28]} 54. Kb5 {[%emt 0:00:55]} Kc7 {[%emt 0:00:47]} 55. a5 {[%emt 0:01:27]} Kb7 {[%emt 0:00:30]} 56. Ra4 {[%emt 0:04:11]} Rb1+ {[%emt 0:00:19]} 57. Kc5 {[%emt 0:00:31]} Rc1+ {[%emt 0:01:00]} 58. Kd6 {[%emt 0:01:01]} Rc6+ {[%emt 0:00:17]} 59. Kd5 {[%emt 0:00:32]} Rh6 {[%emt 0:00:22]} 60. a6+ {[%emt 0:03:11]} Ka7 {[%emt 0:00:20]} 61. Kc5 {[%emt 0:00:50]} Rh4 {[%emt 0:00:28]} 62. Ra2 {[%emt 0:01:18]} Rg4 {[%emt 0:01:15]} 63. d5 {[%emt 0:01:02]} Rg1 {[%emt 0:00:11]} 64. Kc6 {[%emt 0:01:38]} Rc1+ {[%emt 0:00:07]} 65. Kd7 {[%emt 0:01:05]} Rd1 {[%emt 0:00:16]} 66. d6 {[%emt 0:00:15]} Rd3 {[%emt 0:00:08]} 67. Ke7 {[%emt 0:00:29]} Re3+ {[%emt 0:00:06]} 68. Kd8 {[%emt 0:00:13]} Rd3 {[%emt 0:00:07]} 69. d7 {[%emt 0:00:30]} Rd4 {[%emt 0:00:39]} 70. Ke7 {[%emt 0:00:42]} Re4+ {[%emt 0:00:11]} 71. Kd8 {[%emt 0:01:12]} Rh4 {[%emt 0:00:23]} 72. Ke7 {[%emt 0:01:10]} Re4+ {[%emt 0:00:05]} 73. Kd6 {[%emt 0:00:07]} Rd4+ {[%emt 0:00:03]} 74. Ke6 {[%emt 0:00:45]} Rd1 {[%emt 0:00:11]} 75. Ra5 {[%emt 0:01:03]} 1-0

[Event "EYCC Girls-U12 2019"]
[Site "Bratislava"]
[Date "2019.08.05"]
[Round "4.6"]
[White "Lomakina, Anzhelika"]
[Black "Gadasi, Noam"]
[Result "0-1"]
[ECO "B78"]
[WhiteElo "1752"]
[BlackElo "1585"]
[Annotator "NA"]
[PlyCount "90"]
[EventDate "2019.08.02"]
[EventType "swiss"]
[EventCountry "SVK"]
[SourceTitle "playchess.com"]
[Source "ChessBase"]
[SourceQuality "1"]
[TimeControl "40/5400+30:1800+30"]

1. e4 {[%emt 0:00:00]} c5 {[%emt 0:00:00]} 2. Nf3 {[%emt 0:00:00]} d6 {[%emt 0:00:00]} 3. d4 {[%emt 0:00:00]} cxd4 {[%emt 0:00:06]} 4. Nxd4 {[%emt 0:00:00]} Nf6 {[%emt 0:00:15]} 5. Nc3 {[%emt 0:00:00]} g6 {[%emt 0:00:11]} 6. Be3 {[%emt 0:01:08]} Bg7 {[%emt 0:00:15]} 7. f3 {[%emt 0:01:19]} O-O {[%emt 0:01:52]} 8. Qd2 {[%emt 0:01:17]} Nc6 {[%emt 0:00:24]} 9. Bc4 {[%emt 0:00:33]} Bd7 {[%emt 0:00:36]} 10. O-O-O {[%emt 0:00:41]} Rc8 {[%emt 0:02:34]} 11. Bb3 {[%emt 0:00:39]} Nxd4 {[%emt 0:01:38]} 12. Bxd4 {[%emt 0:00:22]} b5 {[%emt 0:00:37]} 13. Nd5 {[%emt 0:01:54]} Nxd5 {[%emt 0:10:35]} 14. Bxg7 {[%emt 0:04:10]} Kxg7 {[%emt 0:00:21]} 15. exd5 {[%emt 0:01:16]} a5 {[%emt 0:12:19]} 16. a3 {[%emt 0:05:11]} Qc7 {[%emt 0:06:32]} 17. g4 {[%emt 0:07:23]} e6 {[%emt 0:14:28]} 18. h4 h6 {[%emt 0:07:13]} 19. Rh2 {[%emt 0:11:54]} e5 {[%emt 0:03:25]} 20. Rg2 {[%emt 0:09:59]} Rb8 {[%emt 0:04:03]} 21. f4 {[%emt 0:03:44]} f6 {[%emt 0:14:01]} 22. g5 {[%emt 0:12:24]} fxg5 {[%emt 0:03:41]} 23. fxe5 {[%emt 0:03:09]} dxe5 {[%emt 0:04:46]} 24. hxg5 {[%emt 0:01:42]} h5 {[%emt 0:00:09]} 25. d6 {[%emt 0:01:38]} Qd8 {[%emt 0:01:22]} 26. Kb1 {[%emt 0:03:34]} a4 {[%emt 0:01:19]} 27. Ba2 {[%emt 0:01:40]} Bg4 {[%emt 0:00:15]} 28. Re1 {[%emt 0:07:19]} Rb6 {[%emt 0:00:42]} 29. Qe3 {[%emt 0:03:25]} Qxd6 {[%emt 0:00:31]} 30. Rd2 {[%emt 0:03:42]} Qc7 {[%emt 0:00:31]} 31. b4 {[%emt 0:03:58]} Re8 {[%emt 0:05:26]} 32. Rd5 {[%emt 0:04:13]} Bf5 {[%emt 0:01:17]} 33. Rc5 {[%emt 0:02:51]} Rc6 {[%emt 0:01:00]} 34. Rxc6 {[%emt 0:01:32]} Qxc6 {[%emt 0:00:02]} 35. Qa7+ {[%emt 0:01:03]} Qd7 {[%emt 0:00:48]} 36. Qe3 {[%emt 0:00:53]} Qc6 {[%emt 0:01:21]} 37. Qa7+ {[%emt 0:00:36]} Kh8 {[%emt 0:01:10]} 38. Re2 {[%emt 0:01:37]} Rc8 {[%emt 0:00:58]} 39. Qf2 {[%emt 0:01:14]} Qc3 {[%emt 0:00:51]} 40. Be6 {[%emt 0:00:00]} Rf8 {[%emt 0:00:00]} 41. Rd2 {[%emt 0:12:51]} e4 {[%emt 0:14:44]} 42. Re2 {[%emt 0:02:52]} Rd8 {[%emt 0:01:40]} 43. Qf1 {[%emt 0:06:13]} Bxe6 {[%emt 0:03:41]} 44. Re3 {[%emt 0:00:35]} Ba2+ {[%emt 0:00:57]} 45. Kc1 {[%emt 0:01:05]} Qa1# 0-1

[Event "EYCC Girls-U12 2019"]
[Site "Bratislava"]
[Date "2019.08.05"]
[Round "4.7"]
[White "Verheij, Dana"]
[Black "Denic, Hana"]
[Result "1-0"]
[ECO "C54"]
[WhiteElo "1497"]
[BlackElo "1821"]
[Annotator "NA"]
[PlyCount "51"]
[EventDate "2019.08.02"]
[EventType "swiss"]
[EventCountry "SVK"]
[SourceTitle "playchess.com"]
[Source "ChessBase"]
[SourceQuality "1"]
[TimeControl "40/5400+30:1800+30"]

1. e4 {[%emt 0:00:00]} e5 {[%emt 0:00:00]} 2. Nf3 {[%emt 0:00:00]} Nc6 {[%emt 0:00:05]} 3. Bc4 {[%emt 0:00:00]} Bc5 {[%emt 0:00:22]} 4. c3 {[%emt 0:00:00]} Nf6 {[%emt 0:07:59]} 5. d4 {[%emt 0:00:27]} exd4 {[%emt 0:00:52]} 6. e5 {[%emt 0:00:18]} d5 {[%emt 0:04:06]} 7. Bb5 {[%emt 0:00:21]} Ne4 {[%emt 0:04:13]} 8. cxd4 {[%emt 0:00:19]} Bb4+ {[%emt 0:03:13]} 9. Bd2 {[%emt 0:01:38]} Bxd2+ {[%emt 0:05:22]} 10. Nbxd2 {[%emt 0:00:06]} Nxd2 {[%emt 0:01:19]} 11. Qxd2 {[%emt 0:00:30]} Bd7 {[%emt 0:01:14]} 12. O-O {[%emt 0:01:59]} O-O {[%emt 0:01:37]} 13. Bd3 {[%emt 0:00:51]} h6 {[%emt 0:02:31]} 14. Rac1 {[%emt 0:02:54]} Rc8 {[%emt 0:03:32]} 15. Rfe1 {[%emt 0:01:08]} Qe7 {[%emt 0:03:54]} 16. Bb1 {[%emt 0:07:34]} Bg4 {[%emt 0:13:46]} 17. Kh1 {[%emt 0:05:47]} Rce8 {[%emt 0:13:05]} 18. Qd3 {[%emt 0:09:31]} g6 {[%emt 0:00:51]} 19. Qe3 {[%emt 0:02:04]} Kg7 {[%emt 0:01:02]} 20. Rg1 {[%emt 0:01:10]} f5 {[%emt 0:03:18]} 21. h3 {[%emt 0:02:08]} f4 {[%emt 0:00:58]} 22. Qb3 {[%emt 0:01:00]} Be6 {[%emt 0:05:39]} 23. Qxb7 {[%emt 0:01:03]} Qd7 {[%emt 0:00:58]} 24. Rxc6 {[%emt 0:02:30]} Rc8 {[%emt 0:02:42]} 25. Rgc1 {[%emt 0:00:39]} Rf7 {[%emt 0:00:29]} 26. Qxa7 1-0